fUSD/lending_fUSD_20250415
["ID","MTS","AMOUNT","RATE_DAILY","PERIOD"]
[358131295,1744757968431,-423.0,0.00043288,30]
[358131296,1744757968455,-423.0,0.00043288,30]
[358131298,1744757968480,-423.0,0.00043288,30]
[358131299,1744757968504,-423.0,0.00043288,30]
[358131301,1744757968529,-423.0,0.00043288,30]
[358131302,1744757968553,-423.0,0.00043288,30]
[358131304,1744757968577,-423.0,0.00043288,30]
[358131305,1744757968601,-423.0,0.00043288,30]
[358131306,1744757968626,-423.0,0.00043288,30]
[358131308,1744757968650,-423.0,0.00043288,30]
[358131309,1744757968674,-1908.82933,0.00043288,30]
[358131311,1744757968699,-150.0,0.0004343,120]
[358131312,1744757968724,-500.0,0.00043443,120]
[358131313,1744757968748,-1908.82933,0.00043488,30]
[358131315,1744757968772,-361.0,0.000435,90]
[358131316,1744757968796,-175.34772299,0.000435,120]
[358131318,1744757968822,-150.0,0.00043526,120]
[358131319,1744757968846,-510.77708366,0.00043643,120]
[358131321,1744757968872,-150.0,0.00043675,120]
[358131322,1744757968897,-1908.82933,0.00043688,30]
[358131323,1744757968922,-806.95620605,0.000437,120]
[358131325,1744757968946,-500.0,0.00043712,30]
[358131326,1744757968987,-206.39592131,0.000438,120]
[358131328,1744757969012,-1000.0,0.00043835,120]
[358131329,1744757969036,-1000.0,0.00043835,120]
[358131331,1744757969060,-1000.0,0.00043835,120]
[358131332,1744757969085,-1000.0,0.00043835,120]
[358131333,1744757969110,-1000.0,0.00043835,120]
[358131335,1744757969135,-1000.0,0.00043835,120]
[358131336,1744757969163,-1000.0,0.00043835,120]
[358131338,1744757969190,-1000.0,0.00043835,120]
[358131339,1744757969215,-1000.0,0.00043835,120]
[358131340,1744757969239,-1000.0,0.00043835,120]
[358131342,1744757969263,-1000.0,0.00043835,120]
[358131343,1744757969289,-1000.0,0.00043835,120]
[358131345,1744757969314,-1000.0,0.00043835,120]
[358131346,1744757969340,-1000.0,0.00043835,120]
[358131348,1744757969366,-1000.0,0.00043835,120]
[358131349,1744757969390,-1000.0,0.00043835,120]
[358131350,1744757969416,-1000.0,0.00043835,120]
[358131352,1744757969440,-1068.09637069,0.00043835,120]
[358131353,1744757969465,-1000.0,0.00043835,120]
[358131355,1744757969490,-1000.0,0.00043835,120]
[358131356,1744757969514,-295.34418316,0.00043835,120]
[358131357,1744757969538,-797.27,0.00043835,120]
[358131358,1744757969562,-252.54397004,0.00043836,120]
[358131359,1744757969586,-589.26926342,0.00043836,120]
[358131360,1744757969611,-158.08452694,0.0004384,120]
[358131361,1744757969637,-158.08452694,0.0004384,120]
[358131362,1744757969663,-158.08452694,0.0004384,120]
[358131363,1744757969688,-158.08452694,0.0004384,120]
[358131365,1744757969713,-158.08452694,0.0004384,120]
[358131366,1744757969739,-158.08,0.0004384,120]
[358131368,1744757969764,-158.08452694,0.0004384,120]
[358131369,1744757969789,-158.08452694,0.0004384,120]
[358131370,1744757969814,-158.08452694,0.0004384,120]
[358131372,1744757969838,-158.08452694,0.0004384,120]
[358131373,1744757969864,-158.08452694,0.0004384,120]
[358131375,1744757969889,-158.08452694,0.0004384,120]
[358131378,1744757970055,-158.08452694,0.0004384,120]
[358131380,1744757970082,-158.08452694,0.0004384,120]
[358131381,1744757970109,-158.08452694,0.0004384,120]
[358131383,1744757970134,-158.08452694,0.0004384,120]
[358131384,1744757970159,-158.08452694,0.0004384,120]
[358131385,1744757970185,-158.08452694,0.0004384,120]
[358131387,1744757970211,-158.08452694,0.0004384,120]
[358131388,1744757970237,-158.08,0.0004384,120]
[358131390,1744757970262,-230.72669981,0.0004384,120]
[358131391,1744757970290,-230.72669981,0.0004384,120]
[358131392,1744757970315,-230.72669981,0.0004384,120]
[358131394,1744757970340,-230.72669981,0.0004384,120]
[358131395,1744757970366,-230.72669981,0.0004384,120]
[358131397,1744757970391,-230.72669981,0.0004384,120]
[358131398,1744757970416,-230.72669981,0.0004384,120]
[358131399,1744757970440,-230.72669981,0.0004384,120]
[358131401,1744757970465,-230.72669981,0.0004384,120]
[358131402,1744757970490,-230.72669981,0.0004384,120]
[358131404,1744757970515,-230.72669981,0.0004384,120]
[358131405,1744757970540,-230.72669981,0.0004384,120]
[358131407,1744757970564,-230.72669981,0.0004384,120]
[358131408,1744757970589,-230.72669981,0.0004384,120]
[358131409,1744757970614,-230.72669981,0.0004384,120]
[358131411,1744757970639,-230.72669981,0.0004384,120]
[358131412,1744757970664,-230.72669981,0.0004384,120]
[358131414,1744757970690,-230.72669981,0.0004384,120]
[358131415,1744757970714,-230.72669981,0.0004384,120]
[358131417,1744757970739,-230.72,0.0004384,120]
[358131418,1744757970764,-538.36229955,0.0004384,120]
[358131419,1744757970788,-538.36229955,0.0004384,120]
[358131421,1744757970812,-538.36229955,0.0004384,120]
[358131422,1744757970836,-538.36229955,0.0004384,120]
[358131424,1744757970862,-538.36229955,0.0004384,120]
[358131425,1744757970890,-538.36229955,0.0004384,120]
[358131427,1744757970916,-538.36229955,0.0004384,120]
[358131428,1744757970941,-538.36229955,0.0004384,120]
[358131430,1744757970967,-538.36229955,0.0004384,120]
[358131431,1744757970991,-538.36229955,0.0004384,120]
[358131432,1744757971017,-538.36229955,0.0004384,120]
[358131434,1744757971042,-538.36229955,0.0004384,120]
[358131435,1744757971067,-538.36229955,0.0004384,120]
[358131437,1744757971091,-538.36229955,0.0004384,120]
[358131438,1744757971116,-538.36229955,0.0004384,120]
[358131440,1744757971141,-538.36229955,0.0004384,120]
[358131441,1744757971167,-538.36229955,0.0004384,120]
[358131443,1744757971192,-538.36229955,0.0004384,120]
[358131444,1744757971217,-538.36229955,0.0004384,120]
[358131445,1744757971241,-538.36,0.0004384,120]
[358131447,1744757971266,-245.59265169,0.0004384,120]
[358131448,1744757971294,-245.59265169,0.0004384,120]
[358131450,1744757971317,-245.59265169,0.0004384,120]
[358131451,1744757971341,-245.59265169,0.0004384,120]
[358131453,1744757971366,-245.59265169,0.0004384,120]
[358131454,1744757971390,-245.59265169,0.0004384,120]
[358131456,1744757971415,-245.59265169,0.0004384,120]
[358131457,1744757971440,-245.59265169,0.0004384,120]
[358131458,1744757971464,-245.59265169,0.0004384,120]
[358131460,1744757971488,-245.59265169,0.0004384,120]
[358131461,1744757971513,-245.59265169,0.0004384,120]
[358131463,1744757971538,-245.59265169,0.0004384,120]
[358131464,1744757971563,-245.59265169,0.0004384,120]
[358131465,1744757971588,-245.59265169,0.0004384,120]
[358131467,1744757971613,-245.59265169,0.0004384,120]
[358131468,1744757971638,-245.59265169,0.0004384,120]
[358131470,1744757971663,-245.59265169,0.0004384,120]
[358131471,1744757971694,-245.59265169,0.0004384,120]
[358131473,1744757971719,-245.59265169,0.0004384,120]
[358131474,1744757971745,-245.59,0.0004384,120]
[358131475,1744757971771,-573.04952062,0.0004384,120]
[358131477,1744757971797,-573.04952062,0.0004384,120]
[358131478,1744757971821,-573.04952062,0.0004384,120]
[358131480,1744757971847,-573.04952062,0.0004384,120]
[358131481,1744757971872,-573.04952062,0.0004384,120]
[358131483,1744757971897,-573.04952062,0.0004384,120]
[358131484,1744757971923,-573.04952062,0.0004384,120]
[358131485,1744757971949,-573.04952062,0.0004384,120]
[358131487,1744757971975,-573.04952062,0.0004384,120]
[358131488,1744757972000,-573.04952062,0.0004384,120]
[358131490,1744757972025,-573.04952062,0.0004384,120]
[358131491,1744757972052,-573.04952062,0.0004384,120]
[358131493,1744757972078,-573.04952062,0.0004384,120]
[358131494,1744757972104,-573.04952062,0.0004384,120]
[358131495,1744757972130,-573.04952062,0.0004384,120]
[358131497,1744757972154,-573.04952062,0.0004384,120]
[358131498,1744757972181,-573.04952062,0.0004384,120]
[358131500,1744757972206,-573.04952062,0.0004384,120]
[358131501,1744757972232,-573.04952062,0.0004384,120]
[358131503,1744757972258,-573.04,0.0004384,120]
[358131504,1744757972284,-150.0,0.00043893,120]
[358131505,1744757972314,-150.0,0.0004393,120]
[358131507,1744757972339,-3179.0,0.00044,120]
[358131508,1744757972363,-253.52285127,0.00044,120]
[358131510,1744757972389,-3153.34858194,0.00044,120]
[358131511,1744757972412,-369.11299267,0.00044,120]
[358131513,1744757972438,-1000.0,0.00044,120]
[358131514,1744757972463,-400.0,0.00044,120]
[358131516,1744757972487,-1908.82933,0.00044088,30]
[358131517,1744757972512,-362.29,0.0004412,30]
[358131519,1744757972536,-208.0,0.0004412,30]
[358131520,1744757972560,-259.0,0.0004412,30]
[358131521,1744757972585,-209.0,0.0004412,30]
[358131523,1744757972609,-2406.07,0.00044165,30]
[358131524,1744757972633,-324.02,0.00044207,30]
[358131526,1744757972657,-1168.33,0.00044209,30]
[358131527,1744757972682,-483.97,0.0004425,30]
[358131531,1744757972860,-2104.44,0.00044277,30]
[358131533,1744757972886,-1000.0,0.00044281,30]
[358131534,1744757972911,-1908.82933,0.00044288,30]
[358131536,1744757972937,-420.83633369,0.0004439,120]
[358131537,1744757972961,-150.0,0.00044482,120]
[358131539,1744757972986,-1908.82933,0.00044488,30]
[358131540,1744757973011,-150.0,0.00044587,120]
[358131541,1744757973036,-150.0,0.00044594,120]
[358131543,1744757973061,-160.75,0.00044666,30]
[358131544,1744757973087,-1908.82933,0.00044688,30]
[358131546,1744757973113,-1047.09,0.0004476,30]
[358131547,1744757973139,-150.0,0.00044774,30]
[358131549,1744757973164,-389.05,0.00044785,30]
[358131550,1744757973191,-150.0,0.00044792,120]
[358131552,1744757973218,-374.64765797,0.000448,120]
[358131553,1744757973243,-2396.11,0.0004488,30]
[358131554,1744757973268,-1908.82933,0.00044888,30]
[358131556,1744757973297,-2719.66532319,0.000449,30]
[358131557,1744757973325,-50000.0,0.00045,45]
[358131559,1744757973351,-1015.61417387,0.00045,120]
[358131560,1744757973377,-223.5917238,0.00045,32]
[358131562,1744757973402,-507.41056649,0.00045,120]
[358131563,1744757973429,-1051.90494464,0.00045,120]
[358131564,1744757973455,-5027.74009374,0.00045,120]
[358131566,1744757973481,-1281.03812481,0.00045,120]
[358131567,1744757973506,-285.20393524,0.00045,120]
[358131569,1744757973531,-4623.22,0.00045,120]
[358131570,1744757973557,-759.49,0.00045,120]
[358131572,1744757973582,-161.16436264,0.00045,120]
[358131573,1744757973607,-309.5,0.00045,120]
[358131574,1744757973632,-151.0,0.00045,120]
[358131576,1744757973657,-151.0,0.00045,120]
[358131577,1744757973683,-151.0,0.00045,100]
[358131579,1744757973710,-150.0,0.00045036,120]
[358131580,1744757973736,-1908.82933,0.00045088,30]
[358131581,1744757973763,-797.27,0.00045205,120]
[358131583,1744757973788,-2000.0,0.00045205,120]
[358131584,1744757973813,-300.0,0.00045205,30]
[358131586,1744757973839,-150.0,0.00045211,120]
[358131587,1744757973864,-150.0,0.00045255,120]
[358131588,1744757973890,-150.0,0.00045263,120]
[358131590,1744757973916,-150.0,0.00045277,120]
[358131591,1744757973942,-1908.82933,0.00045288,30]
[358131593,1744757973967,-1011.15562498,0.00045321,30]
[358131594,1744757973992,-150.0,0.00045371,120]
[358131596,1744757974018,-300.0,0.00045424,30]
[358131597,1744757974044,-150.0,0.00045458,120]
[358131598,1744757974070,-1908.82933,0.00045488,30]
[358131600,1744757974096,-150.0,0.00045617,120]
[358131601,1744757974122,-1908.82933,0.00045688,30]
[358131603,1744757974147,-184.54836219,0.000457,120]
[358131604,1744757974173,-223.04915,0.000458,120]
[358131606,1744757974201,-259.35205,0.000458,120]
[358131607,1744757974227,-150.0,0.000458,120]
[358131608,1744757974254,-150.0,0.000458,120]
[358131610,1744757974280,-1908.82933,0.00045888,30]
[358131611,1744757974311,-1347.98850569,0.000459,119]
[358131613,1744757974338,-208.0,0.000459,30]
[358131614,1744757974365,-259.0,0.000459,30]
[358131616,1744757974391,-209.0,0.000459,30]
[358131617,1744757974419,-50000.0,0.00046,46]
[358131618,1744757974446,-1212.55674059,0.00046,120]
[358131620,1744757974471,-626.21573216,0.00046,60]
[358131621,1744757974496,-475.67786523,0.00046,120]
[358131623,1744757974521,-1000.0,0.00046,30]
[358131624,1744757974546,-3085.93373974,0.00046,30]
[358131625,1744757974572,-1332.50218847,0.00046,120]
[358131627,1744757974598,-1368.95972108,0.00046,120]
[358131628,1744757974625,-1000.0,0.00046,120]
[358131630,1744757974651,-400.0,0.00046,120]
[358131631,1744757974680,-151.0,0.00046,101]
[358131633,1744757974705,-184.36,0.00046,120]
[358131634,1744757974730,-2501.53,0.00046,120]
[358131635,1744757974755,-5289.81,0.00046,120]
[358131637,1744757974779,-2573.71,0.00046,120]
[358131638,1744757974805,-338.0,0.00046,90]
[358131640,1744757974831,-2155.8,0.00046,120]
[358131641,1744757974855,-882.43,0.00046,120]
[358131642,1744757974880,-246.06,0.00046,120]
[358131644,1744757974907,-150.0,0.0004601,120]
[358131645,1744757974933,-1908.82933,0.00046088,30]
[358131647,1744757974958,-150.0,0.00046105,120]
[358131648,1744757974983,-1908.82933,0.00046288,30]
[358131649,1744757975008,-338.0,0.00046395,90]
[358131651,1744757975033,-1908.82933,0.00046488,30]
[358131652,1744757975059,-700.0,0.00046575,120]
[358131654,1744757975085,-700.0,0.00046575,120]
[358131655,1744757975109,-700.0,0.00046575,120]
[358131656,1744757975134,-700.0,0.00046575,120]
[358131658,1744757975158,-693.95917931,0.00046575,120]
[358131659,1744757975182,-831.93,0.00046575,120]
[358131661,1744757975206,-1816.568,0.00046575,120]
[358131662,1744757975232,-150.0,0.00046591,120]
[358131663,1744757975258,-338.0,0.00046669,90]
[358131665,1744757975283,-1908.82933,0.00046688,30]
[358131666,1744757975314,-1908.82933,0.00046888,30]
[358131668,1744757975340,-338.0,0.00046943,90]
[358131669,1744757975366,-150.0,0.00046971,120]
[358131670,1744757975392,-1068.0,0.0004698,30]
[358131671,1744757975419,-666.04,0.00046986,120]
[358131672,1744757975445,-50000.0,0.00047,47]
[358131673,1744757975470,-223.04915,0.00047,120]
[358131674,1744757975495,-591.82923251,0.00047,30]
[358131675,1744757975520,-189.88658165,0.00047,120]
[358131678,1744757975714,-204.76732962,0.00047,120]
[358131679,1744757975739,-2000.0,0.00047,120]
[358131681,1744757975765,-201.86063,0.00047,120]
[358131682,1744757975790,-151.0,0.00047,102]
[358131683,1744757975816,-150.0,0.000472,120]
[358131685,1744757975842,-338.0,0.00047217,90]
[358131686,1744757975868,-687.34933616,0.000475,30]
[358131688,1744757975894,-218.88811399,0.000475,120]
[358131689,1744757975919,-1327.83453848,0.000475,120]
[358131690,1744757975947,-150.0,0.00047555,120]
[358131692,1744757975973,-500.0,0.00047568,30]
[358131693,1744757975999,-208.0,0.0004768,30]
[358131695,1744757976024,-259.0,0.0004768,30]
[358131696,1744757976050,-209.0,0.0004768,30]
[358131697,1744757976075,-957.20738872,0.000478,120]
[358131699,1744757976100,-150.0,0.00047871,120]
[358131700,1744757976124,-1081.36746134,0.000479,120]
[358131702,1744757976149,-831.93,0.00047945,120]
[358131703,1744757976176,-50000.0,0.00048,48]
[358131705,1744757976200,-1033.03593176,0.00048,120]
[358131706,1744757976225,-2000.0,0.00048,120]
[358131707,1744757976249,-1332.50218847,0.00048,120]
[358131709,1744757976274,-1368.95972108,0.00048,120]
[358131710,1744757976301,-1546.0,0.00048,120]
[358131712,1744757976326,-1000.0,0.00048,120]
[358131713,1744757976353,-500.0,0.00048,120]
[358131715,1744757976380,-400.0,0.00048,120]
[358131716,1744757976404,-220.0,0.00048,120]
[358131717,1744757976429,-151.0,0.00048,103]
[358131719,1744757976454,-1000.0,0.00048137,30]
[358131720,1744757976478,-150.0,0.00048139,120]
[358131722,1744757976502,-223.04915,0.000482,120]
[358131723,1744757976527,-150.0,0.00048253,120]
[358131725,1744757976552,-338.0,0.00048427,90]
[358131726,1744757976576,-3000.0,0.0004844,31]
[358131727,1744757976602,-150.0,0.00048466,120]
[358131729,1744757976628,-150.0,0.00048486,120]
[358131730,1744757976652,-330.34225011,0.000486,120]
[358131732,1744757976680,-2000.00000001,0.00048765,45]
[358131733,1744757976706,-608.54837191,0.000488,120]
[358131734,1744757976731,-2626.77754603,0.000488,120]
[358131736,1744757976755,-532.43999999,0.000488,120]
[358131737,1744757976780,-3000.0,0.0004897,31]
[358131739,1744757976807,-50000.0,0.00049,49]
[358131740,1744757976832,-1704.9395275,0.00049,120]
[358131741,1744757976856,-600.16372701,0.00049,120]
[358131743,1744757976884,-760.83983425,0.00049,30]
[358131744,1744757976909,-321.61350501,0.00049,30]
[358131746,1744757976934,-330.47685094,0.00049,120]
[358131747,1744757976959,-2000.0,0.00049,120]
[358131748,1744757976984,-81651.0,0.00049,120]
[358131750,1744757977009,-151.0,0.00049,104]
[358131751,1744757977034,-989.84351889,0.00049004,120]
[358131753,1744757977058,-780.61,0.00049078,30]
[358131754,1744757977082,-1001.47,0.0004922,30]
[358131756,1744757977107,-2650.63,0.00049261,30]
[358131757,1744757977132,-300.0,0.00049281,30]
[358131758,1744757977157,-305.77080733,0.00049311,30]
[358131760,1744757977181,-150.0,0.00049311,30]
[358131761,1744757977206,-150.0,0.00049311,30]
[358131763,1744757977230,-214.54507832,0.00049311,30]
[358131764,1744757977254,-150.0,0.00049311,30]
[358131765,1744757977278,-150.0,0.00049311,30]
[358131767,1744757977306,-150.0,0.00049311,30]
[358131768,1744757977331,-467.21834019,0.00049315,120]
[358131769,1744757977355,-3000.0,0.00049315,120]
[358131771,1744757977384,-3000.0,0.00049315,120]
[358131772,1744757977408,-3000.0,0.00049315,120]
[358131774,1744757977433,-3000.0,0.00049315,120]
[358131775,1744757977457,-3000.0,0.00049315,120]
[358131776,1744757977482,-1999.34433385,0.00049315,120]
[358131778,1744757977505,-301.0,0.00049315,30]
[358131779,1744757977530,-1124.75,0.00049315,120]
[358131780,1744757977555,-500.0,0.00049315,120]
[358131782,1744757977579,-3097.59273903,0.00049315,120]
[358131783,1744757977604,-1000.0,0.00049315,120]
[358131785,1744757977629,-831.93,0.00049315,120]
[358131786,1744757977653,-196.58457604,0.00049315,120]
[358131788,1744757977677,-4000.0,0.00049315,30]
[358131789,1744757977702,-3198.67,0.00049315,30]
[358131790,1744757977726,-610.62,0.00049315,60]
[358131792,1744757977750,-300.0,0.00049315,30]
[358131793,1744757977775,-150.0,0.0004932,120]
[358131794,1744757977800,-726.29756128,0.00049342,120]
[358131796,1744757977825,-305.77080733,0.00049366,30]
[358131797,1744757977849,-214.54507832,0.00049366,30]
[358131799,1744757977875,-150.0,0.00049369,30]
[358131800,1744757977900,-150.0,0.00049387,30]
[358131801,1744757977926,-223.04915,0.000494,120]
[358131803,1744757977950,-500.0,0.000494,120]
[358131804,1744757977975,-350.0,0.000494,120]
[358131806,1744757977999,-305.77080733,0.00049422,30]
[358131807,1744757978023,-214.54507832,0.00049422,30]
[358131808,1744757978047,-150.0,0.00049428,30]
[358131810,1744757978071,-1068.0,0.00049452,30]
[358131811,1744757978096,-208.0,0.0004946,30]
[358131813,1744757978120,-259.0,0.0004946,30]
[358131814,1744757978145,-209.0,0.0004946,30]
[358131815,1744757978170,-150.0,0.00049463,30]
[358131817,1744757978195,-150.0,0.00049463,30]
[358131818,1744757978219,-305.77080733,0.00049477,30]
[358131820,1744757978243,-214.54507832,0.00049477,30]
[358131821,1744757978268,-150.0,0.00049486,30]
[358131822,1744757978297,-1624.47993356,0.000495,120]
[358131826,1744757978458,-101800.0,0.000495,120]
[358131828,1744757978486,-10879.85315607,0.000495,30]
[358131829,1744757978511,-305.77080733,0.00049532,30]
[358131831,1744757978536,-214.54507832,0.00049532,30]
[358131832,1744757978561,-150.0,0.00049539,30]
[358131834,1744757978586,-711.36,0.0004954,30]
[358131835,1744757978610,-150.0,0.00049544,30]
[358131836,1744757978634,-2649.94,0.0004956,30]
[358131838,1744757978658,-305.77080733,0.00049588,30]
[358131839,1744757978683,-214.54507832,0.00049588,30]
[358131841,1744757978709,-1124.75,0.00049589,120]
[358131842,1744757978736,-500.0,0.00049589,120]
[358131844,1744757978762,-150.0,0.00049602,30]
[358131845,1744757978787,-150.0,0.00049615,30]
[358131846,1744757978812,-150.0,0.00049615,30]
[358131848,1744757978836,-305.77080733,0.00049643,30]
[358131849,1744757978861,-214.54507832,0.00049643,30]
[358131851,1744757978887,-3000.0,0.0004965,31]
[358131852,1744757978912,-642.16,0.00049656,30]
[358131853,1744757978937,-150.0,0.00049661,30]
[358131855,1744757978962,-2145.51,0.00049686,30]
[358131856,1744757978988,-1049.30355378,0.0004969,120]
[358131858,1744757979013,-150.0,0.00049691,30]
[358131859,1744757979038,-150.0,0.00049695,120]
[358131860,1744757979064,-305.77080733,0.00049698,30]
[358131862,1744757979088,-214.54507832,0.00049698,30]
[358131863,1744757979112,-150.0,0.00049719,30]
[358131865,1744757979137,-305.77080733,0.00049754,30]
[358131866,1744757979161,-214.54507832,0.00049754,30]
[358131868,1744757979186,-150.0,0.00049768,30]
[358131869,1744757979210,-150.0,0.00049768,30]
[358131870,1744757979234,-476.32705615,0.0004977,120]
[358131872,1744757979259,-150.0,0.00049777,30]
[358131873,1744757979284,-3000.0,0.0004978,31]
[358131875,1744757979312,-1133.86908152,0.000498,30]
[358131876,1744757979338,-2000.000001,0.000498,120]
[358131877,1744757979362,-305.77080733,0.00049809,30]
[358131879,1744757979391,-214.54507832,0.00049809,30]
[358131880,1744757979415,-150.0,0.00049836,30]
[358131882,1744757979439,-150.0,0.00049844,30]
[358131883,1744757979465,-1124.75,0.00049863,120]
[358131885,1744757979490,-500.0,0.00049863,120]
[358131886,1744757979514,-305.77080733,0.00049864,30]
[358131888,1744757979540,-214.54507832,0.00049864,30]
[358131889,1744757979567,-150.0,0.00049894,30]
[358131891,1744757979591,-200000.0,0.000499,30]
[358131892,1744757979617,-305.77080733,0.0004992,30]
[358131893,1744757979641,-214.54507832,0.0004992,30]
[358131895,1744757979666,-150.0,0.0004992,30]
[358131896,1744757979690,-150.0,0.0004992,30]
[358131898,1744757979715,-391.78,0.00049922,30]
[358131899,1744757979740,-150.0,0.00049952,30]
[358131900,1744757979765,-305.77080733,0.00049975,30]
[358131902,1744757979789,-214.54507832,0.00049975,30]
[358131903,1744757979814,-3310.06,0.00049989,30]
[358131905,1744757979839,-150.0,0.00049995,120]
[358131906,1744757979863,-150.0,0.00049996,30]
[358131907,1744757979889,-1899.99612697,0.00049998,120]
[358131909,1744757979914,-27667.91010411,0.00049999,120]
[358131910,1744757979942,-50000.0,0.0005,50]
[358131912,1744757979969,-50000.0,0.0005,60]
[358131913,1744757979995,-840.71,0.0005,120]
[358131915,1744757980020,-2240.0,0.0005,120]
[358131916,1744757980046,-2993.1549986,0.0005,120]
[358131917,1744757980072,-621.91334906,0.0005,30]
[358131919,1744757980097,-1593.9417332,0.0005,120]
[358131920,1744757980123,-841.82954811,0.0005,120]
[358131922,1744757980148,-1262.47829958,0.0005,120]
[358131923,1744757980173,-778.21007928,0.0005,120]
[358131924,1744757980199,-156.16887309,0.0005,30]
[358131926,1744757980224,-3306.1206172,0.0005,120]
[358131927,1744757980249,-213.44888335,0.0005,120]
[358131929,1744757980274,-725.0910635,0.0005,120]
[358131930,1744757980302,-1108.63221056,0.0005,30]
[358131931,1744757980326,-500.0,0.0005,30]
[358131933,1744757980353,-1000.9950087,0.0005,120]
[358131934,1744757980379,-228.89509812,0.0005,120]
[358131936,1744757980403,-565.81329727,0.0005,120]
[358131937,1744757980429,-525.47749605,0.0005,120]
[358131938,1744757980454,-327.73,0.0005,120]
[358131940,1744757980478,-2000.0,0.0005,120]
[358131941,1744757980502,-12626.0,0.0005,120]
[358131943,1744757980527,-473.3,0.0005,120]
[358131944,1744757980551,-302.69358963,0.0005,30]
[358131945,1744757980575,-1000.0,0.0005,120]
[358131947,1744757980599,-4975.29500391,0.0005,120]
[358131948,1744757980623,-500.0,0.0005,120]
[358131950,1744757980646,-170.0,0.0005,120]
[358131951,1744757980670,-532.58627071,0.0005,120]
[358131953,1744757980696,-400.0,0.0005,120]
[358131954,1744757980723,-1000000.0,0.0005,120]
[358131955,1744757980750,-1000000.0,0.0005,120]
[358131957,1744757980777,-1000000.0,0.0005,120]
[358131958,1744757980803,-417651.32498437,0.0005,120]
[358132547,1744758019091,250.0,0.00017,2]
[358132549,1744758048588,-167.02801618,0.00037397,30]
[358132550,1744758048627,-181.63,0.0004199,120]
[358132551,1744758048658,-507.420296,0.000437,42]
[358132552,1744758048702,-154.0,0.00044,90]
[358132553,1744758048731,-154.0,0.00045862,90]
[358132554,1744758048761,-3300.0,0.00049053,42]
[358132555,1744758048790,-500.0,0.000494,120]
[358132556,1744758048815,-350.0,0.000494,120]
[358132557,1744758048841,-450.0,0.00049544,44]
[358132558,1744758048867,-163.88812119,0.00049999,50]
[358132559,1744758048895,-150.0,0.00049999,50]
[358132560,1744758048921,-150.0,0.00049999,50]
[358132561,1744758048947,-150.0,0.00049999,50]
[358132562,1744758048972,-150.0,0.00049999,50]
[358132563,1744758049000,-200.0,0.00049999,50]
[358132564,1744758049026,-150.1096668,0.00049999,50]
[358132565,1744758049053,-150.40807144,0.00049999,50]
[358132566,1744758049079,-150.0,0.00049999,50]
[358132567,1744758049105,-150.0,0.00049999,50]
[358132568,1744758049131,-500.0,0.00049999,50]
[358132569,1744758049158,-500.0,0.00049999,50]
[358132570,1744758049184,-338.41248686,0.00049999,50]
[358132571,1744758049212,-150.0,0.00049999,50]
[358132572,1744758049240,-150.0,0.00049999,50]
[358132573,1744758049269,-150.0,0.00049999,50]
[358132574,1744758049298,-200.0,0.00049999,50]
[358132575,1744758049329,-150.0,0.00049999,50]
[358132576,1744758049357,-150.0,0.00049999,50]
[358132577,1744758049384,-150.0,0.00049999,50]
[358132578,1744758049412,-200.0,0.00049999,50]
[358132579,1744758049440,-500.0,0.00049999,50]
[358132580,1744758049468,-500.0,0.00049999,50]
[358132581,1744758049495,-500.0,0.00049999,50]